Cogmind - Beta 16 @@@ ROGUE MODE // 2025.12.08 @ 18:23:14 Player: lepire Result: Destroyed by as-90892 with Assembled Blade Performance ------------- Evolutions (0) 0 Regions Visited (2) 400 Robots Destroyed (14) 70 Value Destroyed (371) 371 Prototype IDs (0) 0 Alien Tech Used (0) 0 Bonus (0) 0 TOTAL SCORE: 841 Bonus ------- None Cogmind --------- Core Integrity 0/250 Matter 241/300 Energy 100/100 System Corruption 0% Temperature Cool (0) Movement Core (350) Ox6 Location -10/Mines Parts ------- > --- POWER (1) -------- (None) > --- PROPULSION (2) --- (None) > --- UTILITY (2) ------ Large Storage Unit > --- WEAPON (2) ------- (None) > --- INVENTORY (15) --- Heat Sink Signal Interpreter Improved Terrain Scanner Weapon Shielding EM Shotgun EM Shotgun EM Shotgun Assault Rifle Mining Laser Peak State ------------ > --- POWER ------------ Light Ion Engine > --- PROPULSION ------- Light Treads Compact Wheel > --- UTILITY ---------- Large Storage Unit Field Recycling Unit > --- WEAPON ----------- EM Shotgun EM Shotgun > --- INVENTORY -------- Light Ion Engine Light Treads Compact Wheel Heat Sink Signal Interpreter Weapon Shielding EM Pulse Gun EM Shotgun EM Shotgun Assault Rifle Grenade Launcher Mining Laser [Rating: 11] Favorites ----------- Power Light Ion Engine Engine Light Ion Engine Propulsion Compact Wheel Treads Light Treads Leg Aluminum Leg Wheel Compact Wheel Utility Large Storage Unit Device Field Recycling Unit Storage Large Storage Unit Protection Light Armor Plating Weapon EM Shotgun Energy Gun EM Shotgun Ballistic Gun Light Assault Rifle Launcher Grenade Launcher Special Weapon Mining Laser Build | -11 -10 -10 ------- Run | Yrd Mat Min Slots Evolved . | . . . Power . | . . . Propulsion . | . . . Utility . | . . . Weapon . | . . . Parts Attached 16 | 3 8 5 Power 1 | . . 1 Engine 1 | . . 1 Core . | . . . Reactor . | . . . Propulsion 5 | 3 . 2 Treads 2 | 1 . 1 Leg 1 | 1 . . Wheel 2 | 1 . 1 Hover . | . . . Flight . | . . . Utility 3 | . 3 . Device 1 | . 1 . Storage 1 | . 1 . Processor . | . . . Hackware . | . . . Protection 1 | . 1 . Artifact . | . . . Weapon 7 | . 5 2 Energy Gun 4 | . 3 1 Energy Cannon . | . . . Ballistic Gun . | . . . Ballistic Cannon . | . . . Launcher 2 | . 1 1 Special Weapon 1 | . 1 . Impact Weapon . | . . . Slashing Weapon . | . . . Piercing Weapon . | . . . Special Melee Weapon . | . . . Unidentified Prototypes . | . . . Parts Lost 11 | . 2 9 Power 2 | . 1 1 Propulsion 4 | . . 4 Utility 1 | . 1 . Weapon 4 | . . 4 Highest Loss Streak 8 | . 2 8 To Critical Strikes . | . . . Average Backups 9 | 5 9 11 Power . | 1 1 . Propulsion 1 | 3 2 1 Utility 3 | . 2 4 Weapon 4 | 1 3 6 Tool/Special . | . . . Unused Backups 11 | . 4 7 Power 2 | . 2 . Propulsion . | . . . Utility 5 | . 1 4 Weapon 4 | . 1 3 Tool/Special . | . . . Average Slot Usage (%) 87 | . 93 76 Engine 11 | . 11 12 Treads 13 | . 14 12 Wheel 13 | . 14 12 Storage 14 | . 14 14 Protection 6 | . 9 . Energy Gun 23 | . 23 23 Ballistic Gun 2 | . 4 . Peak Build Rating 11 | 6 11 9 Average Rating 7 | 6 7 8 On Entrance 6 | 6 6 8 Avg Prop Armor Cover (%) 11 | . 11 12 Naked Turns . | . . . Heaviest Build 37 | 11 37 29 Greatest Support 16 | 16 16 16 Greatest Overweight (x) 6 | . 2 6 Average Overweight (x) . | . . 1 Largest Inventory Capacity 15 | 8 15 15 Average Capacity 13 | 8 12 15 Most Carried 13 | 6 13 12 Average Carried 9 | 5 9 11 Final Capacity 15 | 8 15 15 Final Carried 13 | 4 13 9 Class Distribution -------------------- 100% | Mutant Dominant Class ---------------- Mutant | -10/Materials Mutant | -10/Mines Resources | -11 -10 -10 ----------- Run | Yrd Mat Min Matter Collected 323 | 230 60 33 Remotely . | . . . Salvage Created 424 | . 188 236 Parts 29 | . 16 13 Haulers Intercepted . | . . . Recyclers Shooed 1 | . . 1 Parts Field Recycled 7 | . 7 . Retrieved Matter 57 | . 57 . Parts Self-Destructed . | . . . Prevented . | . . . Parts Restored . | . . . Kills | -11 -10 -10 ------- Run | Yrd Mat Min Combat Hostiles Destroyed 14 | . 7 7 Guns 7 | . 3 4 AOE 6 | . 4 2 Classes Destroyed 5 | . 4 1 Tunneler 2 | . 1 1 Watcher 1 | . 1 . Swarmer 3 | . 3 . Grunt 8 | . 4 4 Assembled 3 | . . 3 Best Kill Streak 3 | . 3 3 Combat Bots Only 3 | . 3 3 Max Kills in Single Turn 3 | . 3 2 Gunslinging . | . . . Exploded 3 | . 3 2 Melee . | . . . Uniques/NPCs Destroyed . | . . . Combat | -11 -10 -10 -------- Run | Yrd Mat Min Hostile Shots Fired 82 | . 33 49 Missed 21 | . 8 13 Hits 61 | . 25 36 Melee 7 | . . 7 Projectile 54 | . 25 29 AOE 2 | . . 2 Critical Strikes 3 | . 1 2 Damage Taken 1104 | . 316 788 Core 251 | . 48 203 Absorbed by Shields . | . . . Core Remaining (%) 100 | 100 . . Volleys Fired 43 | . 22 21 Largest 2 | . 2 2 Hottest 140 | . 140 90 Shots Fired 68 | . 28 40 Gun 60 | . 24 36 Cannon . | . . . Launcher 7 | . 3 4 Special 1 | . 1 . Kinetic . | . . . Thermal 4 | . 4 . Explosive 7 | . 3 4 Electromagnetic 57 | . 21 36 Robot Hit Streak 8 | . 6 8 Robot Miss Streak 5 | . 5 4 Penetration Max . | . . . Secondary Targets . | . . . Shots Hit Robots 41 | . 10 31 Core Hits 33 | . 15 18 Critical Kills . | . . . Critical Parts Destroyed . | . . . Critical Strikes . | . . . Melee Attacks . | . . . Impact . | . . . Slashing . | . . . Piercing . | . . . Sneak Attacks . | . . . Combat Hostiles . | . . . Follow-up Attacks . | . . . Damage Inflicted 1098 | . 496 602 Guns 563 | . 121 442 Cannons . | . . . Explosions 534 | . 375 159 Melee . | . . . Ramming 1 | . . 1 Kinetic . | . . . Thermal 142 | . 142 . Explosive 392 | . 233 159 Electromagnetic 563 | . 121 442 Impact . | . . . Slashing . | . . . Piercing . | . . . Highest Corruption . | . . . Average Corruption . | . . . Corruption Purged . | . . . Corruption Blocked . | . . . Overload Shots . | . . . Overflow Damage 22 | . . 22 Projectiles . | . . . Explosions 22 | . . 22 Melee . | . . . Knockbacks . | . . . Impact . | . . . Kinetic . | . . . Secondary . | . . . Self-Inflicted Damage 188 | . 66 122 Shots 6 | . 2 4 Rammed 1 | . . 1 Targets Rammed 1 | . . 1 Kicked . | . . . Crushed . | . . . Highest Temperature 205 | . 99 205 Average Temperature 64 | . 31 88 Received Heat Transfer 178 | . 75 103 Siege Activations . | . . . Martial Activations . | . . . Shielding Activations . | . . . Robots Disrupted . | . . . Combat Hostiles . | . . . Robots Corrupted 1 | . . 1 Combat Hostiles 1 | . . 1 Parts Fried 3 | . . 3 Impact Corruptions . | . . . Robots Melted . | . . . Combat Hostiles . | . . . Parts Melted . | . . . Heat Transferred 100 | . 100 . Parts Sabotaged . | . . . Parts Stolen . | . . . Parts Stripped . | . . . Power Chain Reactions 2 | . 2 . Alert | -11 -10 -10 ------- Run | Yrd Mat Min Maximum Alert Level . | . . . Low Security (%) 100 | 100 100 100 Level 1 . | . . . Level 2 . | . . . Level 3 . | . . . Level 4 . | . . . Level 5 . | . . . High Security . | . . . Max Security . | . . . Peak Influence 123 | . 123 54 Initial 19 | . . 19 Average 44 | . 55 23 Influence Increases 373 | . 248 125 Destroy 0b10 Robot/C 220 | . 140 80 Destroy 0b10 Robot/NC 15 | . 10 5 Destroy Leader 52 | . 32 20 Successful Hack 14 | . 14 . Select Force Hacks 30 | . 30 . Destroy Structure 42 | . 22 20 Influence Decreases 373 | . 197 176 Entered New Map 32 | . . 32 Time Decay 271 | . 177 94 Lost Part 70 | . 20 50 Squads Dispatched 4 | . 4 . Investigation 1 | . 1 . Extermination . | . . . Reinforcement 3 | . 3 . Assault . | . . . Garrison . | . . . Intercept . | . . . Searches Triggered . | . . . Construction Impeded . | . . . Haulers Reinforced . | . . . Active Scanning Responses . | . . . Cargo Convoy Interrupts . | . . . Stealth | -11 -10 -10 --------- Run | Yrd Mat Min Distress Signals 1 | . 1 . Communications Jammed . | . . . Distress Signals . | . . . Times Spotted 33 | . 11 22 Peak Tracking Total 19 | . 3 19 Tactical Retreats 1 | . . 1 Traps | -11 -10 -10 ------- Run | Yrd Mat Min Traps Triggered . | . . . Indirectly . | . . . Trap Hack Attempts . | . . . Triggered . | . . . Disarmed . | . . . Reprogrammed . | . . . Reused . | . . . Traps Extracted . | . . . Installed . | . . . Triggered . | . . . Machines | -11 -10 -10 ---------- Run | Yrd Mat Min Machines Disabled . | . . . Max in Single Turn . | . . . Machines Repaired . | . . . Machines Dismantled . | . . . Machines Sabotaged . | . . . Overloaded Fab Kills . | . . . Hacking | -11 -10 -10 --------- Run | Yrd Mat Min Machines Accessed 3 | . 3 . Terminals 2 | . 2 . Fabricators . | . . . Repair Stations . | . . . Recycling Units 1 | . 1 . Scanalyzers . | . . . Garrison Access . | . . . Total Hacks 6 | . 6 . Successful 4 | . 4 . Failed 2 | . 2 . Catastrophic . | . . . Database Lockouts . | . . . Manual 1 | . 1 . Terminals 4 | . 4 . Fabricators . | . . . Repair Stations . | . . . Recycling Units 2 | . 2 . Scanalyzers . | . . . Garrison Access . | . . . Terminal Hacks 2 | . 2 . Robot Analysis 1 | . 1 . Hauler Manifests 1 | . 1 . Fabricator Hacks . | . . . Repair Station Hacks . | . . . Recycling Unit Hacks 1 | . 1 . Report Inventory 1 | . 1 . Scanalyzer . | . . . Garrison Access Hacks . | . . . Unauthorized Hacks 1 | . 1 . Terminals . | . . . Fabricators . | . . . Repair Stations . | . . . Recycling Units 1 | . 1 . Tunnel 1 | . 1 . Scanalyzers . | . . . Garrison Access . | . . . Data Cores Recovered . | . . . Used . | . . . Hacking Detections 1 | . 1 . Full Trace Events 1 | . 1 . Feedback Events . | . . . Feedback Blocked . | . . . Robot Schematics Acquired . | . . . Robots Built . | . . . Authchips . | . . . Time . | . . . Total Robot Build Rating . | . . . Part Schematics Acquired . | . . . Parts Built . | . . . Authchips . | . . . Time . | . . . Total Part Build Rating . | . . . Part Studies Acquired . | . . . Parts Repaired . | . . . Time . | . . . Parts Recycled . | . . . Recycled Matter . | . . . Retrieved Matter . | . . . Retrieved Components . | . . . Parts Scanalyzed . | . . . Part Schematics Acquired . | . . . Parts Damaged . | . . . Bothacking | -11 -10 -10 ------------ Run | Yrd Mat Min Used RIF Installer . | . . . Robots Hacked . | . . . Non-combat . | . . . Combat . | . . . Robot Hacks Applied . | . . . Relay Couplers Released . | . . . Fabnet Peak Effective % . | . . . Robots Rewired . | . . . Allies Hacked . | . . . Hacks Repelled . | . . . Allies | -11 -10 -10 -------- Run | Yrd Mat Min Total Allies . | . . . Largest Group . | . . . Highest-Rated Group . | . . . Highest-Rated Ally . | . . . Total Orders . | . . . Ally Attacks . | . . . Total Damage . | . . . Kills . | . . . Allies Corrupted . | . . . Allies Melted . | . . . Intel | -11 -10 -10 ------- Run | Yrd Mat Min Active Infowar (turns) . | . . . Robot Analysis Total 1 | . 1 . Derelict Logs Recovered 1 | . . 1 Drone Launches . | . . . Drone Recoveries . | . . . Exploration | -11 -10 -10 ------------- Run | Yrd Mat Min Turns Passed 684 | 10 448 226 Spaces Moved 449 | 5 327 117 Core 4 | . . 4 Treads . | . . . Legs . | . . . Wheels 445 | 5 327 113 Hover . | . . . Flight . | . . . Fastest Speed 100 | 100 100 115 Average Speed 113 | 100 110 123 Slowest Speed 350 | 100 130 350 Overloaded Moves . | . . . Propulsion Burnouts . | . . . Robots Hopped . | . . . Potential Cave-ins . | . . . Cave-ins Triggered . | . . . Exploration Rate (%) 23 | 2 46 23 Regions Visited 2 Branch Regions 1 Pre-discovered Areas 1 | . 1 . Known Exits Taken . | . . . Unknown Exits Taken 2 | 1 1 . Scrap Searched . | . . . Spaces Dug 1 | . 1 . Terrain Destroyed 55 | . 20 35 Melee . | . . . Projectile 1 | . 1 . AOE 54 | . 19 35 Terrain Rammed . | . . . Walls Destroyed . | . . . Machines Disabled . | . . . Actions | -11 -10 -10 --------- Run | Yrd Mat Min Total 544 | 9 380 155 Wait 17 | . 10 7 Move 447 | 4 326 117 Hop . | . . . Pick Up 10 | . 9 1 Fast Attach 1 | . 1 . Attach 5 | . . 5 Detach . | . . . Swap 16 | 3 10 3 Drop 4 | 2 2 . Fire 43 | . 22 21 Melee . | . . . Ram 1 | . . 1 Kick . | . . . Crush . | . . . Escape Stasis . | . . . Rewire . | . . . Trap . | . . . Miscellaneous . | . . . Route ------- -11/Scrapyard -10/Materials (discovered 3 exits: [*Mat] / [*Min x2]) -10/Mines (discovered 1 exit: [*Mat]) History --------- Turn | Location | Event 7 | -11/Scrapyard | Discovered new exit (range 2) 11 | -11/Scrapyard | Entered Materials 159 | -10/Materials | Discovered new exit (range 16) 272 | -10/Materials | Discovered new exit (range 12) 324 | -10/Materials | Build established: Mutant 439 | -10/Materials | Discovered new exit (range 8) 459 | -10/Materials | Entered Mines 465 | -10/Mines | Learned location of 1 exit from Materials 576 | -10/Mines | Discovered new exit (range 9) 624 | -10/Mines | Received a Rocket Launcher from a helpful Derelict 634 | -10/Mines | Assembled infested the area 674 | -10/Mines | Core integrity fell below 50% 681 | -10/Mines | Core integrity fell below 20% 685 | -10/Mines | Destroyed by as-90892 with Assembled Blade Last Messages --------------- 00656_ as-64381 destroyed. 00657_ The unstable cave ceiling collapses. 00657_ R-06 Scavenger destroyed. 00659_ as-71653 destroyed. 00659_ as-95071 destroyed. 00660_ The unstable cave ceiling collapses. 00660_ D-53 Grenadier destroyed. 00660_ U-05 Engineer lays Concrete. 00661_ D-53 Grenadier destroyed. 00661_ U-05 Engineer builds a Wall. 00662_ as-41608 destroyed. 00666_ The unstable cave ceiling collapses. 00666_ Com. Wheel destroyed. 00666_ U-05 Engineer lays Concrete. 00667_ The unstable cave ceiling collapses. 00667_ Lgt. Treads destroyed. 00667_ U-05 Engineer builds a Wall. 00667_ EM Pulse Gun destroyed. 00667_ EM Shotgun destroyed. 00668_ Slammed into U-05 Engineer. Map ----- +----------------------------------------------------+ | | | | | | | | | | | | | | | ?????????????????????????????????????????????????? | | ?????????????????????????????????????????????????? | | ???????????????????????############??????????????? | | ???????????????????????# #??????????????? | | ??????????????###??????# """" #??????????????? | | ?????????????## ##????# < """" #??????????????? | | ????????????## ##???# """" #??????????????# | | ????????????# ##### =% =####??????????? | | ????????????# """"=%[ #??????????? | | ????????????# a """" ## #??????????# | | ????????????# ### """" ## ######????? | | ????????????## #?# ## #???## | | ?????????????## #?##a############### #??## # | | ??????????????## ##??# #?????????????# #?## #? | | ??????????????## ##???# #?????????????# ### ## | | ??????????????# ##???# #?????????????# % | | ??????????????# #???# #?????????????###### ## | | ??????????????# #???# #??????????????????# #? | | ??????????????## ####?#@#??????????????????# ## | | ???????????????# #?#a#??????????????????# | | ???????????????# ###a#??????????????????# !=# | | ??????????????## "# a #??????????????????###%# | | ?????????????## % #####????????????????????# # | | ????????????## #??????????????????????# | | ????????????# ??????????????????????### | | ????????????# # ##???????????????????????? | | ????????????# % # #??????????????????????? | | ????????????## #??????????????????????? | | ?????????????## =%%# #??????????????????????? | | ??????????????### # ##??????????????????????? | | ????????????????### ####???????????????????????? | | ??????????????????## ??????????????????????????? | | ???????????????????*!= ??????????????????????????? | | ???????????????????=%| ??????????????????????????? | | ???????????????????!%= ??????????????????????????? | | ??????????????????? %??????????????????????????? | | ??????????????????? %??????????????????????????? | | ??????????????????? ??????????????????????????? | | ??????????????????? ??????????????????????????? | | ???????????????????? ??????????????????????????? | | ?????????????????????????????????????????????????? | | ?????????????????????????????????????????????????? | | ?????????????????????????????????????????????????? | +----------------------------------------------------+ Best States ------------- Heat Dissipation 25 Energy Generation 10 Energy Capacity 125 Matter Stores 300 Matter Capacity 300 Sight Range 16 Terrain Scan Density 10 Armor Coverage 150 Evasion (%) 40 Recoil Reduction 1 Item Schematics ----------------- None Robot Schematics ------------------ None Fabricated ------------ Nothing Repaired ---------- Nothing Studied --------- None Alien Tech Used ----------------- None Achievements -------------- None Challenges ------------ None Game ------ Seed NuclearLightpackCutter Manual? 0 Play Time 00:11:27 Cumulative 119.0 hours Start 2025.12.08 @ 18:13:26 End 2025.12.08 @ 18:23:14 Sessions 1 Manual Loads 0 Difficulty Rogue Special Mode None Game No. 127 Rogue 97 Adventurer 30 Explorer 0 Win Type - Total 1 Types 1/0/0/0/0/0/0/0/0/0 Lore% 58 Gallery% 47 Achievement% 35 Wizard Run 0 Options --------- Layout 2 ASCII 0 Keyboard 1 Movement Arrows Keybinds 0 Fullscreen 1 Font 24/Terminus Map View 50x44 Zoom Use 0% Tactical HUD 1 Map Filters NONE Filters NONE Steam 1 RUN: 01171e4e-d1d8-4e47-9b17-0dc146b6b43d